{"text_format":"1","workbook":"xlsx","n_sheets":6,"sheets":["Cover","Navigator","Style Guide","Model Parameters","Challenge","Error Checks"],"not_rendered":{"charts":0,"images":1,"macros":1,"external_links":0,"defined_names":23,"comments":0,"pivot_tables":0},"unopened":[],"bounds":{"document_bytes":16777216,"sheet_cells":100000,"rows_first":2000,"rows_last":500,"rows_between":2000,"halvings":0,"cell_chars":16384,"cell_head_chars":4096},"cells_cut":0,"cells_raw":0,"read":"whole","date_system":"1900"}

{"sheet":"Cover","index":0,"n_rows":22,"n_cols":7,"rows_kept":22,"cut":false,"hidden":false,"merged":[[16,2,16,9],[17,2,17,9],[20,6,20,8],[21,6,21,8]]}
[]
[]
["Navigator"]
[]
[null,null,{"$f":"Client_Name","v":"SumProduct Pty Ltd"}]
[null,null,{"$f":"Model_Name","v":"SP Sequence Predictor.xlsm"}]
[]
[]
[]
[]
[]
[]
[]
[null,null,"Primary Developer:  Liam Bastick"]
[]
[null,null,"General Cover Notes:"]
[null,null,"Final Friday Fix - November 2016 Challenge."]
[]
[]
[]
[null,null,"Any queries, please e-mail:",null,null,null,"liam.bastick@sumproduct.com"]
[null,null,"Website:",null,null,null,"www.sumproduct.com"]

{"sheet":"Navigator","index":1,"n_rows":13,"n_cols":7,"rows_kept":13,"cut":false,"hidden":false,"merged":[]}
["Navigator"]
[{"$f":"Model_Name","v":"SP Sequence Predictor.xlsm"}]
["Navigator"]
[null,null,null,null,"Error Checks:",null,{"$f":"Overall_Error_Check","v":0}]
[]
[]
[null,1,"Table of Contents"]
[]
[null,null,null,null,null,"Cover"]
[null,null,null,null,null,"Style Guide"]
[null,null,null,null,null,"Model Parameters"]
[null,null,null,null,null,"Challenge"]
[null,null,null,null,null,"Error Checks"]

{"sheet":"Style Guide","index":2,"n_rows":74,"n_cols":11,"rows_kept":74,"cut":false,"hidden":false,"merged":[[16,2,16,6],[2,0,2,4],[7,2,7,6],[8,2,8,6],[9,2,9,6],[10,2,10,6],[11,2,11,6],[12,2,12,6],[13,2,13,6],[14,2,14,6],[15,2,15,6],[34,2,34,6],[17,2,17,6],[18,2,18,6],[19,2,19,6],[24,2,24,6],[25,2,25,6],[26,2,26,6],[27,2,27,6],[28,2,28,6],[29,2,29,6],[30,2,30,6],[31,2,31,6],[46,2,46,6],[35,2,35,6],[36,2,36,6],[37,2,37,6],[38,2,38,6],[39,2,39,6],[40,2,40,6],[41,2,41,6],[42,2,42,6],[43,2,43,6],[44,2,44,6],[45,2,45,6],[61,2,61,6],[47,2,47,6],[48,2,48,6],[49,2,49,6],[50,2,50,6],[51,2,51,6],[52,2,52,6],[53,2,53,6],[54,2,54,6],[57,2,57,6],[59,2,59,6],[60,2,60,6],[73,2,73,6],[62,2,62,6],[63,2,63,6],[64,2,64,6],[65,2,65,6],[66,2,66,6],[67,2,67,6],[68,2,68,6],[69,2,69,6],[70,2,70,6],[71,2,71,6],[72,2,72,6],[80,2,80,6],[74,2,74,6],[75,2,75,6],[76,2,76,6],[77,2,77,6],[78,2,78,6],[79,2,79,6]]}
[{"$f":"IF(ISERROR(RIGHT(CELL(\"filename\",A1),LEN(CELL(\"filename\",A1))-FIND(\"]\",CELL(\"filename\",A1)))),\n\"\",\nRIGHT(CELL(\"filename\",A1),LEN(CELL(\"filename\",A1))-FIND(\"]\",CELL(\"filename\",A1))))","v":"Style Guide"}]
[{"$f":"Model_Name","v":"SP Sequence Predictor.xlsm"}]
["Navigator"]
[null,null,null,null,"Error Checks:",null,null,null,{"$f":"Overall_Error_Check","v":0}]
[]
[null,{"$f":"MAX($B$5:$B5)+1","v":1},"Formatting of Headers / Dividers"]
[]
[null,null,"Description",null,null,null,null,null,"Display",null,"Style Name"]
[]
[null,null,"Sheet Title",null,null,null,null,null,{"$f":"C10","v":"Sheet Title"},null,"Sheet Title"]
[null,null,"Model Name",null,null,null,null,null,{"$f":"C11","v":"Model Name"},null,"Model Name"]
[]
[null,null,"Header 1",null,null,null,null,null,{"$f":"C13","v":"Header 1"},null,"Header 1"]
[null,null,"Header 2",null,null,null,null,null,{"$f":"C14","v":"Header 2"},null,"Header 2"]
[null,null,"Header 3",null,null,null,null,null,{"$f":"C15","v":"Header 3"},null,"Header 3"]
[null,null,"Header 4",null,null,null,null,null,{"$f":"C16","v":"Header 4"},null,"Header 4"]
[]
[null,null,"Notes",null,null,null,null,null,{"$f":"C18","v":"Notes"},null,"Notes"]
[]
[null,null,"Table Heading",null,null,null,null,null,{"$f":"C20","v":"Table Heading"},null,"Table Heading"]
[]
[]
[null,{"$f":"MAX($B$5:$B22)+1","v":2},"Individual Cell Styles"]
[]
[null,null,"Description",null,null,null,null,null,"Display",null,"Style Name"]
[]
[null,null,"Assumption",null,null,null,null,null,"Assumption",null,{"$f":"C27","v":"Assumption"}]
[]
[null,null,"Constraint",null,null,null,null,null,{"$f":"C29","v":"Constraint"},null,{"$f":"C29","v":"Constraint"}]
[]
[null,null,"Empty",null,null,null,null,null,null,null,{"$f":"C31","v":"Empty"}]
[]
[null,null,"Error Check",null,null,null,null,null,0,null,{"$f":"C33","v":"Error Check"}]
[]
[null,null,"Hyperlink",null,null,null,null,null,"Hyperlink",null,{"$f":"C35","v":"Hyperlink"}]
[]
[null,null,"Internal Reference",null,null,null,null,null,{"$f":"'Error Checks'!E12","v":"No checks present"},null,{"$f":"C37","v":"Internal Reference"}]
[]
[null,null,"Line Calculation",null,null,null,null,null,77,null,"Line Calc"]
[]
[null,null,"Line Total",null,null,null,null,null,{"$f":"I39","v":77},null,{"$f":"C41","v":"Line Total"}]
[]
[null,null,"Parameter",null,null,null,null,null,365,null,{"$f":"C43","v":"Parameter"}]
[]
[null,null,"Range Name Description",null,null,null,null,null,"Not_Named",null,{"$f":"C45","v":"Range Name Description"}]
[]
[null,null,"Row Reference",null,null,null,null,null,{"$f":"ROW(C47)","v":47},null,"Row Ref"]
[]
[null,null,"Row Summary",null,null,null,null,null,{"$f":"I41","v":77},null,{"$f":"C49","v":"Row Summary"}]
[]
[null,null,"Units",null,null,null,null,null,"A$",null,{"$f":"C51","v":"Units"}]
[]
[null,null,"WIP",null,null,null,null,null,null,null,{"$f":"C53","v":"WIP"}]
[]
[]
[null,{"$f":"MAX($B$5:$B55)+1","v":3},"Numerical Styles"]
[]
[null,null,"Description",null,null,null,null,null,"Display",null,"Style Name"]
[]
[null,null,"Comma",null,null,null,null,null,123456.789,null,{"$f":"C60","v":"Comma"}]
[]
[null,null,"Comma [0]",null,null,null,null,null,-123456.789,null,"Comma [0]"]
[]
[null,null,"Currency",null,null,null,null,null,123456.789,null,"Currency"]
[]
[null,null,"Currency [0]",null,null,null,null,null,123456.789,null,"Currency [0]"]
[]
[null,null,"Date",null,null,null,null,null,{"$f":"TODAY()","v":"2016-11-23"},null,{"$f":"C68","v":"Date"}]
[]
[null,null,"Date Heading",null,null,null,null,null,{"$f":"TODAY()","v":"2016-11-23"},null,{"$f":"C70","v":"Date Heading"}]
[]
[null,null,"Numbers 0",null,null,null,null,null,-123456.789,null,{"$f":"C72","v":"Numbers 0"}]
[]
[null,null,"Percent",null,null,null,null,null,0.5,null,{"$f":"C74","v":"Percent"}]

{"sheet":"Model Parameters","index":3,"n_rows":31,"n_cols":9,"rows_kept":31,"cut":false,"hidden":false,"merged":[[0,9,0,10],[2,0,2,4],[10,6,10,13],[11,6,11,13]]}
[{"$f":"IF(ISERROR(RIGHT(CELL(\"filename\",A1),LEN(CELL(\"filename\",A1))-FIND(\"]\",CELL(\"filename\",A1)))),\n\"\",\nRIGHT(CELL(\"filename\",A1),LEN(CELL(\"filename\",A1))-FIND(\"]\",CELL(\"filename\",A1))))","v":"Model Parameters"}]
[{"$f":"Model_Name","v":"SP Sequence Predictor.xlsm"}]
["Navigator"]
[null,null,null,null,"Error Checks:",null,null,null,{"$f":"Overall_Error_Check","v":0}]
[]
[null,{"$f":"MAX($B$5:$B5)+1","v":1},"General"]
[]
[null,null,"Key Inputs"]
[]
[null,null,null,null,"General"]
[null,null,null,null,"Model Name",null,{"$f":"IF(ISERROR(OR(FIND(\"[\",CELL(\"filename\",A1)),FIND(\"]\",CELL(\"filename\",A1)))),\"\",MID(CELL(\"filename\",A1),FIND(\"[\",CELL(\"filename\",A1))+1,FIND(\"]\",CELL(\"filename\",A1))-FIND(\"[\",CELL(\"filename\",A1))-1))","v":"SP Sequence Predictor.xlsm"}]
[null,null,null,null,"Client Name",null,"SumProduct Pty Ltd"]
[]
[]
[null,{"$f":"MAX($B$5:$B14)+1","v":2},"General Range Names"]
[]
[null,null,"Technical Assumptions"]
[]
[null,null,null,null,"Days in Year",null,365]
[null,null,null,null,"Months in Month",null,1]
[null,null,null,null,"Months in Quarter",null,3]
[null,null,null,null,"Months in Half Yr",null,6]
[null,null,null,null,"Months in Year",null,12]
[null,null,null,null,"Quarters in Year",null,4]
[]
[null,null,null,null,"Rounding Accuracy",null,5]
[]
[null,null,null,null,"Very Large Number",null,9.9999999999999997E+98]
[null,null,null,null,"Very Small Number",null,1E-8]
[]
[null,null,null,null,"Thousand",null,1000]

{"sheet":"Challenge","index":4,"n_rows":37,"n_cols":9,"rows_kept":37,"cut":false,"hidden":false,"merged":[[2,0,2,4],[12,7,12,10]]}
[{"$f":"IF(ISERROR(RIGHT(CELL(\"filename\",A1),LEN(CELL(\"filename\",A1))-FIND(\"]\",CELL(\"filename\",A1)))),\n\"\",\nRIGHT(CELL(\"filename\",A1),LEN(CELL(\"filename\",A1))-FIND(\"]\",CELL(\"filename\",A1))))","v":"Challenge"}]
[{"$f":"Model_Name","v":"SP Sequence Predictor.xlsm"}]
["Navigator"]
[null,"Error Checks:",null,null,null,{"$f":"Overall_Error_Check","v":0}]
[]
[null,{"$f":"MAX($B$5:$B5)+1","v":1},{"$f":"A1","v":"Challenge"}]
[]
[null,null,"Sequence Challenge"]
[]
[null,null,null,"Data"]
[]
[null,null,null,null,null,"Value"]
[null,null,null,null,{"$f":"N(E12)+1","v":1},{"$f":"IF(SUM(F11:F12)=0,1,SUM(F11:F12))","v":1},null,"=IF(SUM(F11:F12)=0,1,SUM(F11:F12))"]
[null,null,null,null,{"$f":"N(E13)+1","v":2},{"$f":"IF(SUM(F12:F13)=0,1,SUM(F12:F13))","v":1}]
[null,null,null,null,3,2,null,"This formula effectively sums the past two numbers in the sequence."]
[null,null,null,null,4,3,null,"Your challenge is to produce a formula that will do the following:"]
[null,null,null,null,5,5]
[null,null,null,null,6,8,null,"Position","Value"]
[null,null,null,null,7,13,null,7,{"$f":"IFERROR(LOOKUP(H19,E13:F37),)","v":13}]
[null,null,null,null,8,21]
[null,null,null,null,9,34,null,"It should NOT use a LOOKUP function or be dependent upon the data table (left)."]
[null,null,null,null,10,55,null,"It should be able to calculate the 100th value, etc."]
[null,null,null,null,11,89]
[null,null,null,null,12,144]
[null,null,null,null,13,233]
[null,null,null,null,14,377]
[null,null,null,null,15,610]
[null,null,null,null,16,987]
[null,null,null,null,17,1597]
[null,null,null,null,18,2584]
[null,null,null,null,19,4181]
[null,null,null,null,20,6765]
[null,null,null,null,21,10946]
[null,null,null,null,22,17711]
[null,null,null,null,23,28657]
[null,null,null,null,24,46368]
[null,null,null,null,{"$f":"N(E36)+1","v":25},75025]

{"sheet":"Error Checks","index":5,"n_rows":17,"n_cols":9,"rows_kept":17,"cut":false,"hidden":false,"merged":[[0,8,0,9],[2,0,2,4]]}
[{"$f":"IF(ISERROR(RIGHT(CELL(\"filename\",A1),LEN(CELL(\"filename\",A1))-FIND(\"]\",CELL(\"filename\",A1)))),\n\"\",\nRIGHT(CELL(\"filename\",A1),LEN(CELL(\"filename\",A1))-FIND(\"]\",CELL(\"filename\",A1))))","v":"Error Checks"}]
[{"$f":"Model_Name","v":"SP Sequence Predictor.xlsm"}]
["Navigator"]
[null,"Error Checks:",null,null,null,{"$f":"Overall_Error_Check","v":0}]
[]
[null,{"$f":"MAX($B$5:$B5)+1","v":1},"Error Checks"]
[]
[null,null,"Summary of Errors"]
[]
[null,null,null,"Assumptions"]
[]
[null,null,null,null,"No checks present"]
[]
[]
[]
[]
[null,null,null,null,{"$f":"C8","v":"Summary of Errors"},null,null,null,{"$f":"MIN(1,SUM(I11:I15))","v":0}]